Cogmind - Beta 14 @@@ ROGUE MODE // 2025.03.11 @ 00:30:21 Player: puppuppit Result: Destroyed by YG-CS5(R) with Subdweller Machine Gun Performance ------------- Evolutions (0) 0 Regions Visited (3) 600 Robots Destroyed (71) 355 Value Destroyed (1566) 1566 Prototype IDs (2) 40 Alien Tech Used (0) 0 Bonus (0) 0 TOTAL SCORE: 2561 Bonus ------- None Cogmind --------- Core Integrity 0/250 Matter 285/300 Energy 199/200 System Corruption 7% Temperature Cool (0) Movement Rolling (115) Ox1 Location -10/Subcaves Parts ------- > --- POWER (1) -------- Subdweller Power Source > --- PROPULSION (2) --- Compact Wheel Subdweller Monowheel > --- UTILITY (2) ------ Medium Storage Unit Improved Terrain Scanner > --- WEAPON (2) ------- Subdweller Beam Cannon Makeshift Axe > --- INVENTORY (10) --- Subdweller Monowheel Flightbrick High-capacity Matter Pod (200) Scrap Shield Battle Rifle Rocket Launcher Peak State ------------ > --- POWER ------------ Subdweller Power Source > --- PROPULSION ------- Compact Wheel Subdweller Monowheel > --- UTILITY ---------- Medium Storage Unit Improved Terrain Scanner > --- WEAPON ----------- Subdweller Beam Cannon Makeshift Axe > --- INVENTORY -------- Subdweller Monowheel Flightbrick High-capacity Matter Pod Scrap Shield Subdweller Beam Cannon Rocket Launcher [Rating: 19] Favorites ----------- Power Light Ion Engine Engine Light Ion Engine Propulsion Compact Wheel Wheel Compact Wheel Utility Core Shielding Device Improved Terrain Scanner Storage Small Storage Unit Protection Core Shielding Weapon EM Pulse Gun Energy Gun EM Pulse Gun Energy Cannon Subdweller Beam Cannon Ballistic Gun Light Assault Rifle Ballistic Cannon Light Cannon Launcher Grenade Launcher Slashing Weapon Makeshift Axe Build | -11 -10 -10 -10 ------- Run | Yrd Mat Min Sub Slots Evolved . | . . . . Power . | . . . . Propulsion . | . . . . Utility . | . . . . Weapon . | . . . . Parts Attached 59 | 7 20 9 23 Power 3 | 1 . 1 1 Engine 3 | 1 . 1 1 Core . | . . . . Reactor . | . . . . Propulsion 16 | 2 5 5 4 Treads . | . . . . Leg . | . . . . Wheel 16 | 2 5 5 4 Hover . | . . . . Flight . | . . . . Utility 9 | 2 4 . 3 Device 4 | 1 1 . 2 Storage 3 | 1 2 . . Processor . | . . . . Hackware . | . . . . Protection 2 | . 1 . 1 Artifact . | . . . . Weapon 31 | 2 11 3 15 Energy Gun 7 | 1 5 1 . Energy Cannon 4 | . . . 4 Ballistic Gun 4 | 1 . . 3 Ballistic Cannon 1 | . 1 . . Launcher 14 | . 5 2 7 Special Weapon . | . . . . Impact Weapon . | . . . . Slashing Weapon 1 | . . . 1 Piercing Weapon . | . . . . Special Melee Weapon . | . . . . Unidentified Prototypes . | . . . . Corrupted Parts 2 | . 1 1 . System Corruption 7 | . 5 2 . Parts Lost 13 | . 3 2 8 Power 2 | . 1 . 1 Propulsion 6 | . 2 1 3 Utility . | . . . . Weapon 5 | . . 1 4 Highest Loss Streak 2 | . 2 2 2 To Critical Strikes 1 | . 1 . . Average Slot Usage (%) 87 | . 87 81 92 Engine 5 | . 2 6 11 Wheel 27 | . 27 26 27 Device 4 | . 3 . 9 Storage 14 | . 14 14 14 Protection 9 | . 10 14 4 Energy Gun 10 | . 13 13 1 Energy Cannon 3 | . . . 13 Ballistic Gun 3 | . 3 . 5 Ballistic Cannon 6 | . 10 5 . Launcher 1 | . . . 2 Peak Build Rating 19 | 9 10 8 19 Average Rating 8 | 6 7 6 13 On Entrance 5 | . 9 7 7 Naked Turns . | . . . . Heaviest Build 32 | 14 16 16 32 Greatest Support 36 | 20 32 32 36 Greatest Overweight (x) 1 | . . 1 1 Average Overweight (x) . | . . . . Largest Inventory Capacity 10 | 8 10 10 10 Average Capacity 8 | 7 8 10 10 Most Carried 10 | 6 8 10 10 Average Carried 8 | 1 7 9 9 Final Capacity 10 | 8 10 10 10 Final Carried 10 | 6 8 10 10 Class Distribution -------------------- 65% | Mutant 34% | Scavenger-Mutant Dominant Class ---------------- Mutant | -10/Materials Mutant | -10/Mines Scavenger-Mutant | -10/Subcaves Resources | -11 -10 -10 -10 ----------- Run | Yrd Mat Min Sub Matter Collected 2147 | 336 1149 248 414 Remotely . | . . . . Salvage Created 2377 | 276 1043 584 474 Parts 147 | 26 64 24 33 Haulers Intercepted 2 | . 2 . . Recyclers Shooed 11 | . 11 . . Parts Field Recycled . | . . . . Retrieved Matter . | . . . . Parts Self-Destructed 9 | . . . 9 Prevented . | . . . . Kills | -11 -10 -10 -10 ------- Run | Yrd Mat Min Sub Combat Hostiles Destroyed 45 | . 22 8 15 Guns 10 | . 8 2 . Cannons 9 | . 3 2 4 AOE 26 | . 11 4 11 Classes Destroyed 10 | 3 5 . 2 Worker 4 | 2 2 . . Builder 1 | . 1 . . Tunneler 6 | 5 1 . . Hauler 2 | . 2 . . Recycler 10 | 1 4 5 . Watcher 3 | . 3 . . Swarmer 12 | . 9 . 3 Grunt 25 | . 13 8 4 Sentry 1 | . . . 1 Subdweller 7 | . . . 7 Best Kill Streak 9 | 6 9 3 3 Combat Bots Only 6 | . 6 2 3 Max Kills in Single Turn 3 | 1 3 2 2 Gunslinging . | . . . . Exploded 3 | . 3 1 2 Melee . | . . . . Uniques/NPCs Destroyed . | . . . . Combat | -11 -10 -10 -10 -------- Run | Yrd Mat Min Sub Hostile Shots Fired 126 | . 73 20 33 Missed 39 | . 22 8 9 Damage Taken 1240 | . 569 249 422 Core 253 | . 98 39 116 Absorbed by Shields . | . . . . Redirected to Shielding 23 | . 13 8 2 Regen/Repaired (Parts) 22 | . 22 . . Core Remaining (%) 100 | 100 . . . Volleys Fired 184 | 21 101 38 24 Largest 2 | 2 2 2 2 Hottest 160 | 60 75 75 160 Shots Fired 322 | 42 187 55 38 Gun 211 | 42 129 33 7 Cannon 78 | . 44 14 20 Launcher 33 | . 14 8 11 Special . | . . . . Kinetic 126 | 21 86 14 5 Thermal 20 | . . . 20 Explosive 33 | . 14 8 11 Electromagnetic 143 | 21 87 33 2 Robot Hit Streak 15 | 7 15 8 9 Robot Miss Streak 5 | 2 4 5 1 Penetration Max . | . . . . Secondary Targets 1 | . 1 . . Max Gunslinging Chain 1 | . 1 . . Shots Hit Robots 176 | 26 101 26 23 Core Hits 111 | 13 52 25 21 Critical Kills 1 | 1 . . . Critical Parts Destroyed . | . . . . Critical Strikes 3 | 2 1 . . Destroy 1 | 1 . . . Blast 1 | . 1 . . Corrupt 1 | 1 . . . Melee Attacks . | . . . . Impact . | . . . . Slashing . | . . . . Piercing . | . . . . Sneak Attacks . | . . . . Combat Hostiles . | . . . . Follow-up Attacks . | . . . . Damage Inflicted 4584 | 286 2328 780 1190 Guns 1447 | 286 858 228 75 Cannons 903 | . 473 104 326 Explosions 2234 | . 997 448 789 Melee . | . . . . Ramming . | . . . . Kinetic 986 | 127 690 104 65 Thermal 473 | . 33 114 326 Explosive 2087 | . 964 334 789 Electromagnetic 1038 | 159 641 228 10 Impact . | . . . . Slashing . | . . . . Piercing . | . . . . Highest Corruption 7 | . 5 7 7 Average Corruption 6 | . 5 5 7 Corruption Purged . | . . . . Corruption Blocked . | . . . . Effects 54 | . 2 16 36 Message Errors 12 | . 1 1 10 Matter Fused 16 | . . 3 13 Heat Flow Errors 8 | . 1 4 3 Energy Discharges 4 | . . 1 3 Parts Rejected 1 | . . . 1 Data Loss (minor) 5 | . . 4 1 Data Loss (major) 3 | . . . 3 Misfires 3 | . . 2 1 Alerts 1 | . . 1 . Weapon Failures 1 | . . . 1 Overload Shots . | . . . . Overflow Damage 55 | . . 15 40 Projectiles . | . . . . Explosions 55 | . . 15 40 Melee . | . . . . Knockbacks 6 | . 4 2 . Impact . | . . . . Kinetic 6 | . 4 2 . Secondary . | . . . . Self-Inflicted Damage 107 | . 28 65 14 Shots 5 | . 1 3 1 Rammed . | . . . . Targets Rammed . | . . . . Kicked . | . . . . Crushed . | . . . . Highest Temperature 270 | 80 188 270 205 Average Temperature 54 | 37 40 72 75 Received Heat Transfer 450 | . 237 126 87 Siege Activations . | . . . . Robots Corrupted 1 | . 1 . . Combat Hostiles . | . . . . Parts Fried 2 | 1 1 . . Impact Corruptions . | . . . . Robots Melted . | . . . . Combat Hostiles . | . . . . Parts Melted 2 | . . . 2 Heat Transferred 644 | . 50 150 444 Parts Sabotaged . | . . . . Parts Stolen . | . . . . Parts Stripped . | . . . . Power Chain Reactions 2 | . 1 1 . Alert | -11 -10 -10 -10 ------- Run | Yrd Mat Min Sub Peak Influence 318 | 40 318 286 . Initial 89 | . 26 89 . Average 179 | 18 193 171 . Maximum Alert Level 1 | . 1 1 . Low Security (%) 69 | 100 66 74 . Level 1 30 | . 33 25 . Level 2 . | . . . . Level 3 . | . . . . Level 4 . | . . . . Level 5 . | . . . . High Security . | . . . . Max Security . | . . . . Squads Dispatched 4 | . 4 . . Investigation 4 | . 4 . . Extermination . | . . . . Reinforcement . | . . . . Assault . | . . . . Garrison . | . . . . Intercept . | . . . . Searches Triggered . | . . . . Construction Impeded . | . . . . Haulers Reinforced . | . . . . Active Scanning Responses . | . . . . Cargo Convoy Interrupts . | . . . . Stealth | -11 -10 -10 -10 --------- Run | Yrd Mat Min Sub Distress Signals 2 | . 2 . . Communications Jammed . | . . . . Distress Signals . | . . . . Times Spotted 55 | . 33 7 15 Peak Tracking Total 5 | . 5 2 3 Tactical Retreats 2 | . 1 . 1 Traps | -11 -10 -10 -10 ------- Run | Yrd Mat Min Sub Traps Triggered . | . . . . Indirectly . | . . . . Trap Hack Attempts . | . . . . Triggered . | . . . . Disarmed 6 | . 6 . . Reprogrammed . | . . . . Reused . | . . . . Traps Extracted . | . . . . Installed . | . . . . Triggered . | . . . . Machines | -11 -10 -10 -10 ---------- Run | Yrd Mat Min Sub Machines Disabled 4 | . 2 2 . Max in Single Turn 1 | . 1 1 . Machines Repaired . | . . . . Machines Dismantled . | . . . . Machines Sabotaged . | . . . . Overloaded Fab Kills . | . . . . Hacking | -11 -10 -10 -10 --------- Run | Yrd Mat Min Sub Machines Accessed 11 | . 11 . . Terminals 8 | . 8 . . Fabricators . | . . . . Repair Stations 1 | . 1 . . Recycling Units 2 | . 2 . . Scanalyzers . | . . . . Garrison Access . | . . . . Total Hacks 43 | . 43 . . Successful 26 | . 26 . . Failed 16 | . 16 . . Catastrophic . | . . . . Database Lockouts 1 | . 1 . . Manual 30 | . 30 . . Terminals 36 | . 36 . . Fabricators . | . . . . Repair Stations 2 | . 2 . . Recycling Units 5 | . 5 . . Scanalyzers . | . . . . Garrison Access . | . . . . Terminal Hacks 7 | . 7 . . Robot Analysis 2 | . 2 . . Prototype ID Bank 1 | . 1 . . Terminal Index 1 | . 1 . . Locate Traps 1 | . 1 . . Disarm Traps 1 | . 1 . . Zone Layout 1 | . 1 . . Fabricator Hacks . | . . . . Repair Station Hacks 2 | . 2 . . Scan Component 1 | . 1 . . Repair 1 | . 1 . . Recycling Unit Hacks 2 | . 2 . . Retrieve Components 2 | . 2 . . Scanalyzer . | . . . . Garrison Access Hacks . | . . . . Unauthorized Hacks 15 | . 15 . . Terminals 13 | . 13 . . Assimilate 2 | . 2 . . Botnet 6 | . 6 . . Disrupt 1 | . 1 . . Operators 1 | . 1 . . Skim 3 | . 3 . . Fabricators . | . . . . Repair Stations . | . . . . Recycling Units 2 | . 2 . . Tunnel 2 | . 2 . . Scanalyzers . | . . . . Garrison Access . | . . . . Data Cores Recovered . | . . . . Used . | . . . . Hacking Detections 9 | . 9 . . Full Trace Events 5 | . 5 . . Feedback Events . | . . . . Feedback Blocked . | . . . . Robot Schematics Acquired . | . . . . Robots Built . | . . . . Authchips . | . . . . Time . | . . . . Total Robot Build Rating . | . . . . Part Schematics Acquired . | . . . . Parts Built . | . . . . Authchips . | . . . . Time . | . . . . Total Part Build Rating . | . . . . Parts Repaired 1 | . 1 . . Time 26 | . 26 . . Parts Recycled . | . . . . Recycled Matter . | . . . . Retrieved Matter . | . . . . Retrieved Components 20 | . 20 . . Parts Scanalyzed . | . . . . Part Schematics Acquired . | . . . . Parts Damaged . | . . . . Bothacking | -11 -10 -10 -10 ------------ Run | Yrd Mat Min Sub Used RIF Installer . | . . . . Robots Hacked . | . . . . Non-combat . | . . . . Combat . | . . . . Robot Hacks Applied . | . . . . Relay Couplers Released . | . . . . Fabnet Peak Effective % . | . . . . Robots Rewired . | . . . . Allies Hacked . | . . . . Hacks Repelled . | . . . . Allies | -11 -10 -10 -10 -------- Run | Yrd Mat Min Sub Total Allies 2 | . 2 . . Largest Group 2 | . 2 2 1 Highest-Rated Group 20 | . 20 20 10 Highest-Rated Ally 10 | . 10 10 10 Total Orders 6 | . 6 . . STAY 3 | . 3 . . FOLLOW 3 | . 3 . . Ally Attacks . | . . . . Total Damage . | . . . . Kills . | . . . . Allies Corrupted . | . . . . Allies Melted . | . . . . Intel | -11 -10 -10 -10 ------- Run | Yrd Mat Min Sub Robot Analysis Total 2 | . 2 . . Derelict Logs Recovered 3 | . . 2 1 Drone Launches . | . . . . Drone Recoveries . | . . . . Exploration | -11 -10 -10 -10 ------------- Run | Yrd Mat Min Sub Turns Passed 3919 | 138 2080 681 1020 Spaces Moved 3310 | 77 1718 627 888 Core 6 | 6 . . . Treads . | . . . . Legs . | . . . . Wheels 3304 | 71 1718 627 888 Hover . | . . . . Flight . | . . . . Fastest Speed 50 | 50 80 90 100 Average Speed 96 | 77 96 91 101 Slowest Speed 115 | 80 100 100 115 Overloaded Moves . | . . . . Propulsion Burnouts . | . . . . Robots Hopped . | . . . . Cave-ins Triggered . | . . . . Exploration Rate (%) 59 | 3 98 98 37 Regions Visited 3 Branch Regions 2 Pre-discovered Areas 3 | . 2 1 . Known Exits Taken . | . . . . Unknown Exits Taken 3 | 1 1 1 . Scrap Searched 10 | . . 1 9 Spaces Dug 19 | . . . 19 Terrain Destroyed 173 | . 53 39 81 Melee . | . . . . Projectile 3 | . . . 3 AOE 170 | . 53 39 78 Terrain Rammed . | . . . . Walls Destroyed . | . . . . Machines Disabled . | . . . . Actions | -11 -10 -10 -10 --------- Run | Yrd Mat Min Sub Total 3730 | 114 1968 683 965 Wait 114 | . 106 3 5 Move 3307 | 76 1717 626 888 Hop . | . . . . Pick Up 30 | 8 10 2 10 Fast Attach 21 | 7 5 2 7 Attach 11 | . 1 1 9 Detach 7 | . 2 1 4 Swap 27 | . 14 6 7 Drop 29 | 2 12 4 11 Fire 184 | 21 101 38 24 Melee . | . . . . Ram . | . . . . Kick . | . . . . Crush . | . . . . Escape Stasis . | . . . . Rewire . | . . . . Trap . | . . . . Miscellaneous . | . . . . Route ------- -11/Scrapyard -10/Materials (discovered 6 exits: [*Mat x3] / [*Min x2] / [*Sub]) -10/Mines (discovered 3 exits: [*Mat x2] / [*Sub]) -10/Subcaves (discovered 2 exits: [*Mat x2]) History --------- Turn | Location | Event 34 | -11/Scrapyard | Discovered new exit (range 16) 139 | -11/Scrapyard | Entered Materials 322 | -10/Materials | Build established: Mutant 355 | -10/Materials | Discovered new exit (range 8) 524 | -10/Materials | Discovered new exit (range 9) 579 | -10/Materials | Central database locked down 618 | -10/Materials | Discovered new exit (range 12) 639 | -10/Materials | Discovered new exit (range 10) 965 | -10/Materials | Repaired EM Pulse Gun 1081 | -10/Materials | Discovered new exit (range 8) 1963 | -10/Materials | Discovered new exit (range 6) 2219 | -10/Materials | Entered Mines 2219 | -10/Mines | Accompanied by 2 allies 2400 | -10/Mines | Received a Rocket Launcher from a helpful Derelict 2463 | -10/Mines | Discovered new exit (range 8) 2498 | -10/Mines | Core integrity fell below 50% 2630 | -10/Mines | Discovered new exit (range 10) 2674 | -10/Mines | Learned 2 Materials zone layouts 2880 | -10/Mines | Build established: Scavenger-Mutant 2898 | -10/Mines | Discovered new exit (range 3) 2900 | -10/Mines | Entered Subcaves 2900 | -10/Subcaves | Accompanied by 1 ally 3096 | -10/Subcaves | Disturbed a concealed Subdweller 3230 | -10/Subcaves | A Subdweller sparked back to life 3230 | -10/Subcaves | A Subdweller sparked back to life 3230 | -10/Subcaves | A Subdweller sparked back to life 3246 | -10/Subcaves | Found Prototype Flight Unit 3479 | -10/Subcaves | Discovered new exit (range 15) 3564 | -10/Subcaves | Discovered new exit (range 15) 3658 | -10/Subcaves | Core integrity fell below 20% 3746 | -10/Subcaves | Shifting Twisted Machinery released Battle Rifle 3780 | -10/Subcaves | Shifting Twisted Machinery released Scrap Shield 3920 | -10/Subcaves | Destroyed by YG-CS5(R) with Subdweller Machine Gun Last Messages --------------- 03695_ Acquired 10 matter. 03697_ Aluminum Leg fries itself beyond repair. Battle Rifle falls loose from the Twisted Machinery. 03749_ System corrupted: Matter fused (-5). 03760_ Sub. Beam Cannon shoots sparks and powers down. 03766_ System corrupted: Heat flow error (+212). Scrap Shield falls loose from the Twisted Machinery. 03802_ System corrupted: Energy discharge (-56). 03818_ System corrupted: Heat flow error (+189). 03827_ Subatomizers dissect the Mak. Axe. 03829_ Acquired Mak. Axe. 03832_ Acquired 15 matter. 03837_ Dropped Broken Sub. Beam Cannon. 03838_ Acquired Battle Rifle. 03840_ Subatomizers dissect the Sub. Laser. 03851_ System corrupted: Matter fused (-5). 03880_ MGHLPCLLFSQH#MT9TMJP5V:N1FLCDQOQ=3=I 03905_ Dropped Scrap Shield. 03906_ Acquired Scrap Shield. 03916_ System corrupted: Matter fused (-10). Map ----- +----------------------------------------------------+ | ########?#??#####????#???????????????????????????? | | # ##???## #######??#####??#???????#??????#?? | | #??## #### ##???????????????????? | | < #### ## ##?????#?####???????? | | # # # ##??##### ##??????? | | ##### ##?## #??????? | | ????# #### ##### ### ##?????? | | ????# #### #######???## "##?#??? | | ???#####???##??????????## "" #????? | | ?#?????????????????#???## "" #????? | | ?????????#?????????##### """ """ ##????? | | ???#??????#????##### " """" """ #?????? | | ??#????##????#?# "" """"""" ""????? | | ???????????????# """ """"""""" ""????? | | ?????#?????????## """ """"""" ## ""?? ?? | | ???????????#????# """"["""""""#?#"" ???? | | ????????????????# ! """""" ??""??""????? | | ???#??#?????????# """""" ?????????????? | | ????????????????## """ #? ? ??????????? | | ???????#?????????### ###? ??#????#????? | | ?????????????#?????## #####??????????????????? | | ????????????????????# #??????????????????????? | | ????????????????????## ####? ?????? ??????????? | | ?????????????????????## ##?????? ??????????? | | ?????????????????????## "#?? ???????????????? | | ?????????????????????# @ #??????????????????? | | ?????????????????????# #??????????????????? | | ??????????????? ##??????????????????? | | ?????????????# ##???????????????????? | | ?????????????# ##????????????????????? | | ?????????????### #?????????????????????? | | ???????????????# ?????????????????????? | | ???????????????# ??????? ?????????????? | | ?????????????? ?????????????????????? | | ????????????? ## ????????????????????? | | ???????????????## # ????????????????????? | | ???????????????? ### ????????????????????? | | ??????????????? R ??# ????????????????????? | | ????????????????? ???## ###???????????????????? | | ??????????????????????## ??????????????????????? | | ???????????????????????# ??????????????????????? | | ????????????????????????# ??????????????????????? | | ?????????????????????????????????????????????????? | | ?????????????????????????????????????????????????? | | ?????????????????????????????????????????????????? | | ?????????????????????????????????????????????????? | | ?????????????????????????????????????????????????? | | ?????????????????????????????????????????????????? | | ?????????????????????????????????????????????????? | | ?????????????????????????????????????????????????? | +----------------------------------------------------+ Best States ------------- Heat Dissipation 39 Energy Generation 15 Energy Capacity 250 Matter Stores 300 Matter Capacity 300 Sight Range 16 Terrain Scan Range 16 Terrain Scan Density 10 Core Shielding 20 Evasion (%) 44 Item Schematics ----------------- None Robot Schematics ------------------ None Fabricated ------------ Nothing Alien Tech Used ----------------- None Achievements -------------- None Challenges ------------ None Game ------ Seed PortableMeleeNanoactuators Manual? 0 Play Time 00:30:10 Cumulative 191.3 hours Start 2025.03.11 @ 00:01:38 End 2025.03.11 @ 00:30:21 Sessions 1 Manual Loads 0 Difficulty Rogue Special Mode None Game No. 105 Rogue 105 Adventurer 0 Explorer 0 Win Type - Total 3 Types 1/0/1/1/0/0/0/0/0 Lore% 62 Gallery% 65 Achievement% 60 Wizard Run 0 Options --------- Layout 0 ASCII 0 Keyboard 1 Movement Vi Keybinds 0 Fullscreen 1 Font 12/Proggy Map View 83x54 Zoom Use 0% Tactical HUD 1 Map Filters NONE Filters NONE Steam 0 RUN: b73db2a8-709e-41ea-bbbe-b5e455d4f5d3